bitfinex-derivatives/quotes_ETHF0:USTF0_20250330
["timestamp","ask_amount","ask_price","bid_price","bid_amount"]
[1743293436178,4.0596,1826.0,1825.9,0.00554086]
[1743293439273,1.5002,1826.0,1825.9,8.07154487]
[1743293439784,1.5002,1826.0,1825.9,6.97578487]
[1743293439984,2.5959,1826.0,1825.9,6.97578487]
[1743293440674,2.5959,1826.0,1825.9,8.07154487]
[1743293440879,2.5959,1826.0,1825.9,9.48544487]
[1743293442679,2.5959,1826.0,1825.9,8.38968487]
[1743293443689,2.5959,1826.0,1825.9,1.41944086]
[1743293443888,2.5959,1826.0,1825.9,0.00554086]
[1743293445086,2.5959,1826.0,1825.9,1.10130086]
[1743293445286,2.5959,1826.0,1825.9,0.00554086]
[1743293445990,2.5959,1826.0,1825.9,6.97578487]
[1743293448385,2.5959,1826.0,1825.9,8.07154487]
[1743293448586,2.5959,1826.0,1825.9,6.97578487]
[1743293449982,1.5002,1826.0,1825.9,8.07154487]
[1743293450182,3.2078,1826.1,1826.0,1.0957]
[1743293450388,4.7144,1826.1,1826.0,3.2042]
[1743293452593,5.81004,1826.1,1826.0,3.2042]
[1743293453496,5.81004,1826.1,1826.0,2.1085]
[1743293453691,5.81004,1826.1,1826.0,3.2042]
[1743293454894,5.81004,1826.1,1826.0,2.4925]
[1743293456086,5.81004,1826.1,1826.0,1.3968]
[1743293456898,2.60224,1826.1,1826.0,1.3968]
[1743293457088,5.81004,1826.1,1826.0,1.3968]
[1743293457701,5.81004,1826.1,1826.0,2.4925]
[1743293458490,5.81004,1826.1,1826.0,1.3968]
[1743293458695,5.81004,1826.1,1826.0,2.4925]
[1743293459400,5.81004,1826.1,1826.0,1.3968]
[1743293460391,5.81004,1826.1,1826.0,2.4925]
[1743293463911,4.7144,1826.1,1826.0,2.4925]
[1743293464205,3.2078,1826.1,1826.0,9.46274401]
[1743293464410,3.2078,1826.3,1826.2,1.09558]
[1743293464610,1.09546,1826.4,1826.3,1.09548]
[1743293464802,2.50206,1826.4,1826.3,8.06572401]
[1743293465405,2.50206,1826.4,1826.3,6.97024401]
[1743293465711,1.09552,1826.3,1826.2,1.4309]
[1743293465916,6.36302,1826.3,1826.2,6.97024401]
[1743293466306,1.09558,1826.2,1826.0,2.56496]
[1743293466513,1.3719,1826.1,1826.0,9.53524401]
[1743293469221,3.8956,1826.3,1826.2,1.09558]
[1743293469418,5.33,1826.3,1826.2,1.09558]
[1743293469625,5.33,1826.3,1826.2,8.06582401]
[1743293469824,4.6422,1826.3,1826.2,9.53392401]
[1743293472022,3.2078,1826.3,1826.2,9.53392401]
[1743293474119,3.2078,1826.3,1826.2,13.13592401]
[1743293475522,1.4956,1826.5,1826.4,1.09546]
[1743293476016,1.4956,1826.5,1826.4,8.06570401]
[1743293476215,1.4956,1826.5,1826.4,9.52340401]
[1743293476917,1.4956,1826.5,1826.4,2.55316]
[1743293477123,1.4956,1826.5,1826.4,9.52340401]
[1743293486233,1.49719784,1826.7,1826.4,9.52340401]
[1743293486429,0.00819784,1826.7,1826.6,1.09534]
[1743293486628,0.00819784,1826.7,1826.6,2.52964]
[1743293486936,0.00819784,1826.7,1826.6,12.70768401]
[1743293489934,7.84e-06,1826.7,1826.6,15.20768401]
[1743293490124,1.3719,1827.2,1827.1,1.09504]
[1743293490530,1.3719,1827.2,1827.1,4.17397617]
[1743293490936,3.9278,1827.4,1827.3,1.09492]
[1743293491337,3.9278,1827.4,1827.3,4.17385617]
[1743293491837,6.39456,1827.4,1827.3,3.07893617]
[1743293492241,6.39456,1827.4,1827.3,4.17385617]
[1743293492546,6.39456,1827.4,1827.3,3.07893617]
[1743293493248,3.18676,1827.4,1827.3,3.07893617]
[1743293493549,3.88966,1827.4,1827.3,3.07893617]
[1743293493742,3.88966,1827.4,1827.3,4.17385617]
[1743293493937,3.88966,1827.4,1827.3,3.07893617]
[1743293494141,1.09492,1827.3,1827.2,1.10317784]
[1743293494446,2.57842,1827.3,1827.2,3.08713401]
[1743293494951,1.4835,1827.3,1827.2,4.18211401]
[1743293495448,2.57842,1827.3,1827.2,4.18211401]
[1743293497849,2.57842,1827.3,1827.2,3.08713401]
[1743293498943,2.57842,1827.3,1827.2,4.18211401]
[1743293501951,2.57842,1827.3,1827.2,3.08713401]
[1743293503155,2.57842,1827.3,1827.2,4.18211401]
[1743293503352,2.57842,1827.3,1827.2,3.08713401]
[1743293504856,1.4835,1827.3,1827.2,4.18211401]
[1743293506256,0.72,1827.4,1827.3,1.09492]
[1743293506446,0.72,1827.4,1827.3,4.17385617]
[1743293506654,0.72,1827.4,1827.3,4.90245617]
[1743293506954,1.50509784,1827.5,1827.4,1.09486]
[1743293507149,1.50509784,1827.5,1827.4,4.17379617]
[1743293509453,1.50509784,1827.5,1827.4,5.62089617]
[1743293509650,0.00819784,1827.5,1827.4,5.62089617]
[1743293517455,0.00819784,1827.5,1827.4,4.17379617]
[1743293518054,1.48159784,1827.5,1827.4,4.17379617]
[1743293519250,1.48159784,1827.5,1827.4,5.55289617]
[1743293521259,1.48159784,1827.5,1827.4,6.29649617]
[1743293521857,0.00819784,1827.5,1827.4,6.29649617]
[1743293524060,0.00819784,1827.5,1827.4,8.79649617]
[1743293527469,0.00819784,1827.5,1827.4,12.00429617]
[1743293528567,0.00819784,1827.5,1827.4,9.50429617]
[1743293536472,0.00819784,1827.5,1827.4,10.05229617]
[1743293537768,0.00819784,1827.5,1827.4,17.31573357]
[1743293544472,0.00819784,1827.5,1827.4,14.10793357]
[1743293544678,0.00819784,1827.5,1827.4,17.31573357]
[1743293546375,7.84e-06,1827.5,1827.4,19.81573357]
[1743293546775,1.4805,1827.8,1827.7,1.09468]
[1743293547074,1.4805,1827.8,1827.7,7.83148]
[1743293547279,1.4805,1827.8,1827.7,10.91041617]
[1743293547774,1.4805,1827.8,1827.7,12.38151617]
[1743293549474,1.44049784,1827.9,1827.8,1.09462]
[1743293549681,1.44049784,1827.9,1827.8,5.61565617]
[1743293550079,4.30204,1828.5,1828.3,1.09429]
[1743293550275,0.7519,1828.4,1828.3,1.09429]
[1743293552784,2.2302,1828.4,1828.3,1.09429]
[1743293553385,2.9516,1828.4,1828.3,1.09429]
[1743293555784,4.04586,1828.4,1828.3,1.09429]
[1743293555982,4.04586,1828.4,1828.2,1.10252784]
[1743293556186,1.4834,1828.3,1828.2,1.10252784]
[1743293558975,1.4834,1828.3,1828.2,4.18146401]
[1743293561782,1.4834,1828.3,1828.2,0.00819784]
[1743293561783,2.57772,1828.3,1828.2,0.00819784]
[1743293562296,1.4834,1828.3,1828.2,1.10257784]
[1743293568996,1.4834,1828.3,1828.2,2.49707784]
[1743293569493,1.4834,1828.3,1828.2,5.57601401]
[1743293569796,0.00819784,1828.5,1828.4,1.09426]
[1743293570191,0.00819784,1828.5,1828.4,6.35949617]
[1743293576098,0.00819784,1828.5,1828.4,6.90669617]
[1743293576301,0.00819784,1828.5,1828.4,6.35949617]
[1743293576496,0.00819784,1828.5,1828.4,6.90669617]
[1743293577696,7.84e-06,1828.5,1828.4,6.90669617]
[1743293578104,7.84e-06,1828.5,1828.4,14.00046973]
[1743293578299,7.84e-06,1828.5,1828.4,16.50046973]
[1743293578598,1.4058,1829.0,1828.9,1.09396]
[1743293578794,0.6835,1829.1,1829.0,1.0939]
[1743293578995,2.0627,1829.1,1829.0,4.17282833]
[1743293579200,2.0627,1829.1,1829.0,5.58462833]
[1743293580199,2.0627,1829.1,1828.9,3.2078]
[1743293580506,1.3792,1829.0,1828.9,4.30176]
[1743293581106,2.4731,1829.0,1828.9,3.2078]
[1743293581409,1.3792,1829.0,1828.9,4.30176]
[1743293582403,1.3792,1829.0,1828.9,3.2078]
[1743293582707,2.4731,1829.0,1828.9,3.2078]
[1743293583409,2.4731,1829.0,1828.9,4.30176]
[1743293583904,1.3792,1829.0,1828.9,4.30176]
[1743293585308,4.587,1829.0,1828.8,4.60901]
[1743293585503,1.09396,1828.9,1828.8,7.68793833]
[1743293585718,2.46196,1828.9,1828.8,7.68793833]
[1743293585913,1.368,1828.9,1828.8,4.17293833]
[1743293586115,2.46196,1828.9,1828.8,4.17293833]
[1743293586513,1.368,1828.9,1828.8,4.17293833]
[1743293586822,2.46196,1828.9,1828.8,3.07892833]
[1743293587420,3.15736,1828.9,1828.8,3.07892833]
[1743293588318,3.15736,1828.9,1828.8,4.17294833]
[1743293588519,2.0634,1828.9,1828.8,5.66364833]
[1743293591513,2.0634,1828.9,1828.8,8.87144833]
[1743293592722,0.6835,1829.1,1828.8,8.87144833]
[1743293592723,0.6835,1829.1,1828.8,7.77742833]
[1743293592923,2.1087,1829.0,1828.9,5.60155833]
[1743293596829,0.6835,1829.1,1829.0,1.0939]
[1743293597120,0.6835,1829.1,1829.0,9.62112833]
[1743293597713,0.74009784,1829.2,1829.1,1.09384]
[1743293597917,0.00819784,1829.2,1829.1,5.65986833]
[1743293599025,0.00819784,1829.2,1829.1,6.09779733]
[1743293601820,0.00819784,1829.2,1829.1,5.65986833]
[1743293605526,0.00819784,1829.2,1829.1,6.09905483]
[1743293606124,7.84e-06,1829.2,1829.1,6.09905483]
[1743293611231,7.84e-06,1829.2,1829.1,13.35340171]
[1743293618932,7.84e-06,1829.2,1829.1,15.85340171]
[1743293622028,7.84e-06,1829.2,1829.1,11.42711521]
[1743293622229,7.84e-06,1829.2,1829.1,3.07892833]
[1743293622533,3.59381784,1829.2,1828.9,1.09394]
[1743293622732,2.2023,1829.1,1829.0,1.0939]
[1743293622929,2.9447,1829.1,1829.0,1.0939]
[1743293623635,2.9447,1829.1,1828.9,1.09396]
[1743293623834,1.4953,1829.0,1828.9,1.09396]
[1743293624235,1.4953,1829.0,1828.8,7.8078]
[1743293624438,1.4953,1829.0,1828.8,10.88672833]
[1743293624942,2.58921,1829.0,1828.8,9.79272833]
[1743293625135,1.4953,1829.0,1828.8,10.88672833]
[1743293625338,2.54328,1829.1,1828.8,7.38072833]
[1743293625339,1.4113,1828.9,1828.8,7.38072833]
[1743293625836,1.4113,1828.9,1828.8,4.17294833]
[1743293629945,1.4113,1828.9,1828.8,3.07892833]
[1743293630441,1.09408,1828.7,1828.6,4.30191]
[1743293630641,1.09425,1828.5,1828.2,3.21599784]
[1743293630841,2.1483,1828.4,1828.3,7.68019833]
[1743293631041,0.685,1828.6,1828.5,1.0942]
[1743293631236,1.387,1828.6,1828.5,1.0942]
[1743293632544,1.387,1828.6,1828.4,4.30202]
[1743293632740,1.4463,1828.5,1828.4,7.38094833]
[1743293633548,2.5405,1828.5,1828.4,6.28672833]
[1743293634648,1.4463,1828.5,1828.4,7.38098833]
[1743293636438,1.4463,1828.5,1828.4,4.30206]
[1743293639047,1.4463,1828.5,1828.4,7.38098833]
[1743293639852,1.4463,1828.5,1828.4,8.81548833]
[1743293640647,2.5405,1828.5,1828.4,3.2078]
[1743293641143,1.4463,1828.5,1828.4,3.2078]
[1743293641345,1.4463,1828.5,1828.4,4.30206]
[1743293644047,1.4463,1828.5,1828.4,7.38098833]
[1743293644755,1.4463,1828.5,1828.4,8.74058833]
[1743293646160,2.5405,1828.5,1828.4,3.2078]
[1743293646860,1.4463,1828.5,1828.4,4.30206]
[1743293647053,1.4463,1828.5,1828.4,7.38098833]
[1743293647757,1.4463,1828.5,1828.4,8.84508833]
[1743293649459,1.387,1828.6,1828.5,1.0942]
[1743293649659,1.387,1828.6,1828.5,5.58342833]
[1743293649851,3.2078,1828.9,1828.7,1.09408]
[1743293650055,3.2078,1828.9,1828.8,1.09402]
[1743293650257,3.2078,1828.9,1828.8,2.50432]
[1743293650563,5.73356,1828.9,1828.8,1.4103]
[1743293650957,4.6396,1828.9,1828.8,2.50432]
[1743293652159,1.4433,1829.0,1828.9,1.09396]
[1743293652359,2.9273,1829.0,1828.9,2.52576]
[1743293652962,2.9273,1829.0,1828.9,5.60468833]
[1743293653557,1.4433,1829.0,1828.9,5.60468833]
[1743293654262,2.9273,1829.0,1828.9,5.60468833]
[1743293659670,4.0212,1829.0,1828.9,5.60468833]
[1743293660563,4.0212,1829.0,1828.9,4.51072833]
[1743293660865,4.0212,1829.0,1828.9,5.60468833]
[1743293661765,1.09396,1828.9,1828.8,3.2078]
[1743293661966,1.09414,1828.6,1828.5,4.30196]
[1743293662276,1.09414,1828.7,1828.6,3.07892833]
[1743293662671,1.09414,1828.6,1828.5,4.5658]
[1743293662974,3.25064,1828.6,1828.5,5.53112833]
[1743293663971,2.1565,1828.6,1828.5,5.53112833]
[1743293664169,0.737,1828.7,1828.6,1.09414]
[1743293664375,6.7188,1829.0,1828.8,1.09402]
[1743293664376,2.0803,1828.9,1828.8,1.09402]
[1743293664579,0.737,1829.1,1829.0,1.0939]
[1743293664768,7.84e-06,1829.2,1829.1,1.09384]
[1743293664974,7.84e-06,1829.2,1829.1,6.26096833]
[1743293665276,7.84e-06,1829.2,1829.1,15.80723957]
[1743293665479,4.30112,1830.0,1829.1,15.80723957]
[1743293665480,1.3848,1830.0,1829.9,1.09337]
[1743293665871,2.47811,1830.0,1829.8,3.2078]
[1743293666072,2.47811,1830.0,1829.8,7.67852049]
[1743293666268,4.30117,1829.9,1829.8,4.47072049]
[1743293666474,2.47817,1829.9,1829.8,4.47072049]
[1743293667570,2.47817,1829.9,1829.7,0.00819784]
[1743293667571,1.09343,1829.8,1829.7,0.00819784]
[1743293667774,1.3901,1829.8,1829.7,0.00819784]
[1743293667974,2.48353,1829.8,1829.7,0.00819784]
[1743293668181,2.48353,1829.8,1829.7,1.49829784]
[1743293668382,1.3901,1829.8,1829.7,1.49829784]
[1743293668580,2.48353,1829.8,1829.7,1.49829784]
[1743293668972,1.3901,1829.8,1829.7,1.49829784]
[1743293669682,2.48353,1829.8,1829.7,1.49829784]
[1743293671884,2.48353,1829.8,1829.7,0.00819784]
[1743293672090,4.98353,1829.8,1829.7,0.00819784]
[1743293672280,9.20943,1829.8,1829.7,0.00819784]
[1743293672587,1.09373,1829.3,1829.1,5.3382]
[1743293672783,1.09373,1829.3,1829.2,4.54212049]
[1743293672987,1.09373,1829.3,1829.2,3.07892049]
[1743293673287,5.7078,1829.3,1828.8,5.72859]
[1743293673492,1.09394,1829.0,1828.8,12.35751049]
[1743293673688,1.09394,1829.0,1828.9,4.51391833]
[1743293675788,1.09394,1829.0,1828.9,5.60787833]
[1743293675983,1.09394,1829.0,1828.9,4.51391833]
[1743293676288,0.00819784,1829.1,1828.9,5.60786833]
[1743293676490,1.10203784,1829.1,1829.0,3.07892049]
[1743293676781,1.10203784,1829.1,1828.9,1.43499784]
[1743293676782,1.0939,1829.0,1828.9,1.43499784]
[1743293676983,1.0939,1829.0,1828.9,0.00819784]
[1743293677176,6.8017,1829.0,1828.9,0.00819784]
[1743293677382,5.8956,1829.0,1828.9,0.00819784]
[1743293681686,3.3956,1829.0,1828.9,0.00819784]
[1743293682492,3.3956,1829.0,1828.9,1.51529784]
[1743293682686,4.1092,1829.0,1828.9,1.51529784]
[1743293685997,1.8075,1829.0,1828.9,1.51529784]
[1743293686700,0.00819784,1829.1,1828.9,4.59421833]
[1743293686989,1.10205784,1829.1,1829.0,1.0939]
[1743293687190,1.10205784,1829.1,1829.0,5.65092049]
[1743293687495,0.00819784,1829.1,1829.0,5.65092049]
[1743293688498,0.00819784,1829.1,1829.0,8.85872049]
[1743293689092,0.00819784,1829.1,1829.0,7.76482049]
[1743293689400,1.10203784,1829.1,1829.0,7.76482049]
[1743293690197,0.00819784,1829.1,1829.0,8.85872049]
[1743293690398,1.10203784,1829.1,1829.0,8.85872049]
[1743293690593,2.58363784,1829.1,1829.0,8.85872049]
[1743293691100,2.58363784,1829.1,1829.0,7.76482049]
[1743293691590,2.58363784,1829.1,1829.0,8.85872049]
[1743293691786,2.58363784,1829.1,1829.0,7.76482049]
[1743293692400,1.10203784,1829.1,1829.0,8.85872049]
[1743293692799,0.00819784,1829.1,1829.0,8.85872049]
[1743293693298,1.10203784,1829.1,1829.0,8.85872049]
[1743293695098,0.00819784,1829.1,1829.0,8.85872049]
[1743293695391,1.10203784,1829.1,1829.0,8.85872049]
[1743293695800,0.00819784,1829.1,1829.0,8.85872049]
[1743293700403,1.10203784,1829.1,1829.0,8.85872049]
[1743293701203,0.00819784,1829.1,1829.0,8.85872049]
[1743293705195,0.7098,1829.6,1829.5,1.09361]
[1743293705392,0.7098,1829.6,1829.5,4.17253049]
[1743293706007,1.4254,1829.7,1829.5,4.17253049]
[1743293706008,1.4254,1829.7,1829.6,1.09355]
[1743293706198,1.4254,1829.7,1829.6,5.57807049]
[1743293708998,0.75062221,1829.8,1829.7,1.09349]
[1743293709202,2.11732221,1829.8,1829.7,5.58141049]
[1743293710805,0.00812221,1829.8,1829.7,5.58141049]
[1743293712699,1.44472221,1829.8,1829.7,5.58141049]
[1743293713700,0.00812221,1829.8,1829.7,5.58141049]
[1743293714606,1.09361,1829.5,1829.4,3.2078]
[1743293714802,1.09361,1829.5,1829.4,4.30147]
[1743293715000,1.09359,1829.6,1829.5,1.09361]
[1743293715206,2.1324,1829.6,1829.5,4.17253049]
[1743293715405,2.1324,1829.6,1829.5,5.62493049]
[1743293716002,3.22595,1829.6,1829.5,5.62493049]
[1743293716204,3.22595,1829.6,1829.5,4.53132049]
[1743293716704,3.22595,1829.6,1829.5,3.07892049]
[1743293717013,2.1324,1829.6,1829.5,3.07892049]
[1743293717307,3.22599,1829.6,1829.5,3.07892049]
[1743293718607,3.22599,1829.6,1829.5,4.50312049]
[1743293719312,3.22599,1829.6,1829.5,3.07892049]
[1743293725816,3.22599,1829.6,1829.5,4.17253049]
[1743293726014,3.22599,1829.6,1829.5,3.07892049]
[1743293726915,3.22599,1829.6,1829.5,4.49222049]
[1743293727516,3.22599,1829.6,1829.5,5.58583049]
[1743293727812,0.6958,1829.6,1829.5,5.58583049]
[1743293728019,2.1069,1829.6,1829.5,4.49222049]
[1743293728814,11.3507,1829.6,1829.0,3.9199]
[1743293729017,1.09384,1829.1,1829.0,3.07892049]
[1743293729909,2.50494,1829.1,1829.0,3.07892049]
[1743293730316,1.0939,1829.0,1828.8,1.4227]
[1743293730511,2.505,1829.0,1828.9,3.08711833]
[1743293731012,13.39268,1829.0,1828.4,1.4201]
[1743293731317,1.09414,1828.6,1828.5,4.51682049]
[1743293732110,3.28754,1828.6,1828.5,4.51682049]
[1743293736418,6.49534,1828.6,1828.5,4.51682049]
[1743293738121,1.0942,1828.5,1828.4,0.00819784]
[1743293738323,2.4825,1828.5,1828.4,4.46321833]
[1743293740115,2.73569,1828.4,1827.9,5.04552]
[1743293740312,1.09448,1828.1,1828.0,3.07892049]
[1743293740520,1.09448,1828.1,1828.0,4.17342049]
[1743293740719,1.09448,1828.1,1828.0,3.07892049]
[1743293742022,1.09448,1828.1,1828.0,4.17342049]
[1743293742924,1.09448,1828.1,1828.0,3.07892049]
[1743293743315,2.52858,1828.1,1828.0,4.51182049]
[1743293745024,1.0944,1828.2,1828.1,1.09444]
[1743293745330,8.1779,1828.5,1828.2,1.09435]
[1743293745519,2.52836,1828.4,1828.3,1.4329]
[1743293745719,2.52836,1828.4,1828.3,4.51182049]
[1743293747425,2.52836,1828.4,1828.3,3.07892049]
[1743293747622,1.4341,1828.4,1827.9,0.75139784]
[1743293747826,4.30224,1828.1,1828.0,4.53492049]
[1743293748123,1.09444,1828.1,1828.0,4.53492049]
[1743293748528,1.09444,1828.1,1828.0,5.62939049]
[1743293748725,1.3804,1828.2,1828.0,5.62939049]
[1743293749019,2.47478,1828.2,1828.1,5.23102049]
[1743293749226,2.47478,1828.2,1828.1,2.1521]
[1743293749414,2.47478,1828.2,1828.1,5.23102049]
[1743293749621,2.47478,1828.2,1828.1,3.07892049]
[1743293749827,3.17278,1828.2,1828.1,3.07892049]
[1743293752224,1.0945,1828.0,1827.9,0.75139784]
[1743293752419,4.3023,1828.0,1827.9,3.08711833]
[1743293752821,5.7456,1828.0,1827.9,3.08711833]
[1743293756920,5.7456,1828.0,1827.9,4.18167833]
[1743293757123,2.5378,1828.0,1827.9,3.08711833]
[1743293765436,1.4433,1828.0,1827.9,3.08711833]
[1743293765653,2.5378,1828.0,1827.9,3.08711833]
[1743293773744,6.64183,1828.2,1827.9,3.08711833]
[1743293773745,3.2078,1828.4,1827.9,6.29491833]
[1743293773935,5.3873,1828.4,1828.0,5.22552049]
[1743293774129,1.09438,1828.3,1828.1,3.28171]
[1743293774334,1.09438,1828.3,1828.2,1.434]
[1743293774537,1.09438,1828.3,1828.2,4.51292049]
[1743293774738,1.5003,1828.4,1828.2,5.60730049]
[1743293775041,2.5946,1828.4,1828.3,4.51292049]
[1743293775337,1.10229784,1828.7,1828.3,8.43332049]
[1743293775542,0.00819784,1828.7,1828.4,4.51292049]
[1743293775840,0.00819784,1828.7,1828.6,1.09414]
[1743293776038,0.00819784,1828.7,1828.5,5.25592049]
[1743293776230,1.10231784,1828.7,1828.6,4.51292049]
[1743293776431,1.09426,1828.4,1828.3,0.7126]
[1743293776835,1.09426,1828.4,1828.3,3.79152049]
[1743293778033,1.09426,1828.4,1828.3,3.07892049]
[1743293779242,1.09438,1828.2,1828.1,3.2078]
[1743293779436,1.09438,1828.2,1828.1,4.6477]
[1743293779732,1.09438,1828.2,1828.1,7.72662049]
[1743293779931,1.78568,1828.2,1828.1,7.72662049]
[1743293780639,1.78568,1828.2,1828.1,6.28672049]
[1743293780832,1.78568,1828.2,1828.1,7.72662049]
[1743293781439,1.78568,1828.2,1828.1,4.51882049]
[1743293784133,1.78568,1828.2,1828.1,3.07892049]
[1743293784530,2.52688,1828.2,1828.1,3.07892049]
[1743293785434,2.52688,1828.2,1828.1,4.55192049]
[1743293788042,2.52688,1828.2,1828.1,3.07892049]
[1743293788739,1.0945,1828.0,1827.9,0.00819784]
[1743293789137,1.0945,1828.0,1827.9,3.08711833]
[1743293789737,1.0945,1828.0,1827.9,0.00819784]
[1743293789944,1.0948,1827.5,1827.4,2.1639]
[1743293790140,1.0948,1827.5,1827.4,1.4564]
[1743293790440,1.0948,1827.5,1827.4,4.53532049]
[1743293794242,1.37959784,1827.6,1827.4,4.53532049]
[1743293794243,0.00819784,1827.6,1827.5,1.0948]
[1743293794550,0.00819784,1827.6,1827.5,9.61842049]
[1743293797443,2.58243784,1827.6,1827.5,8.52362049]
[1743293798050,1.48769784,1827.6,1827.5,9.61842049]
[1743293798545,2.58243784,1827.6,1827.5,9.61842049]
[1743293798746,1.48769784,1827.6,1827.5,9.61842049]
[1743293799051,0.00819784,1827.6,1827.5,9.61842049]
[1743293800857,1.10293784,1827.6,1827.5,4.57792049]
[1743293801044,3.22053784,1827.6,1827.5,4.57792049]
[1743293801853,0.00819784,1827.6,1827.5,8.88052049]
[1743293802148,1.10293784,1827.6,1827.5,7.78572049]
[1743293802350,1.10293784,1827.6,1827.5,4.57792049]
[1743293802551,1.10293784,1827.6,1827.5,3.07892049]
[1743293802749,4.31073784,1827.6,1827.5,3.07892049]
[1743293803352,5.04813784,1827.6,1827.5,3.07892049]
[1743293803852,1.84033784,1827.6,1827.5,3.07892049]
[1743293804852,3.32913784,1827.6,1827.5,3.07892049]
[1743293806951,1.09486,1827.4,1827.3,0.00819784]
[1743293807251,1.09486,1827.4,1827.3,3.07892049]
[1743293807753,2.57066,1827.4,1827.3,3.07892049]
[1743293810553,2.57066,1827.4,1827.3,4.58112049]
[1743293811249,2.57066,1827.4,1827.3,3.07892049]
[1743293811451,1.09492,1827.3,1827.2,0.00819784]
[1743293811652,6.00832,1827.3,1827.2,0.00819784]
[1743293812154,6.00832,1827.3,1827.2,3.08711833]
[1743293813259,6.00832,1827.3,1827.2,0.00819784]
[1743293813952,6.00832,1827.3,1827.2,3.08711833]
[1743293825779,1.09504,1827.1,1827.0,1.3611]
[1743293825976,4.30284,1827.1,1827.0,1.3611]
[1743293826275,4.30284,1827.1,1827.0,4.44002049]
[1743293826471,5.68504,1827.1,1827.0,4.44002049]
[1743293826676,2.47724,1827.1,1827.0,4.44002049]
[1743293826980,0.7455,1827.2,1827.0,4.44002049]
[1743293827284,3.22272,1827.2,1827.1,4.56322049]
[1743293827768,2.47722,1827.2,1827.1,4.56322049]
[1743293829379,0.00819784,1827.6,1827.5,1.0948]
[1743293829771,0.00819784,1827.6,1827.5,4.17372049]
[1743293830176,0.00819784,1827.6,1827.5,5.65392049]
[1743293830774,1.4707,1827.9,1827.5,5.65392049]
[1743293830775,1.0945,1828.1,1827.8,1.09461]
[1743293830980,1.0945,1828.0,1827.9,2.2285]
[1743293831173,1.0945,1828.0,1827.9,5.30742049]
[1743293831377,3.2078,1828.0,1827.4,4.30264]
[1743293831578,1.09472,1827.7,1827.6,0.7483]
[1743293831983,1.09472,1827.7,1827.6,3.07892049]
[1743293832584,2.53852,1827.7,1827.6,4.48802049]
[1743293835491,2.53852,1827.7,1827.6,3.07892049]
[1743293835881,1.09474,1827.6,1827.5,0.00819784]
[1743293836082,2.50954,1827.6,1827.5,3.08711833]
[1743293836388,5.71734,1827.6,1827.5,3.08711833]
[1743293836982,5.71734,1827.6,1827.5,0.00819784]
[1743293837187,5.71734,1827.6,1827.5,3.08711833]
[1743293842484,2.50954,1827.6,1827.5,3.08711833]
[1743293844481,4.3025,1827.7,1827.5,3.08711833]
[1743293844689,2.57258,1827.7,1827.6,4.52962049]
[1743293844992,2.57258,1827.7,1827.6,5.25952049]
[1743293846997,1.10283784,1827.8,1827.6,9.56202049]
[1743293847195,1.10283784,1827.8,1827.7,5.68110049]
[1743293847595,1.10283784,1827.8,1827.7,4.58642049]
[1743293847791,0.00819784,1827.8,1827.7,5.68110049]
[1743293847988,1.10281784,1827.8,1827.7,4.58642049]
[1743293848986,1.09474,1827.6,1827.2,3.2078]
[1743293849191,1.09474,1827.6,1827.1,2.2572]
[1743293849192,1.09498,1827.2,1827.1,2.2572]
[1743293849594,1.09498,1827.2,1827.1,5.33612049]
[1743293850001,2.54378,1827.2,1827.1,4.58642049]
[1743293851198,2.54378,1827.2,1827.1,5.30952049]
[1743293855700,2.54378,1827.2,1827.1,4.58642049]
[1743293855998,1.09504,1827.1,1827.0,0.00554086]
[1743293856301,6.42834,1827.1,1827.0,3.08446135]
[1743293857794,3.22054,1827.1,1827.0,3.08446135]
[1743293858996,3.9365,1827.3,1827.0,3.08446135]
[1743293859197,4.6268,1827.3,1827.1,4.55032049]
[1743293859403,4.6268,1827.3,1827.2,1.4714]
[1743293859404,5.72172,1827.3,1827.2,1.4714]
[1743293859704,5.72172,1827.3,1827.2,4.55032049]
[1743293859909,5.72172,1827.3,1827.2,3.07892049]
[1743293861101,1.09504,1827.1,1827.0,0.00554086]
[1743293861398,1.09504,1827.1,1827.0,3.08446135]
[1743293861791,2.52614,1827.1,1827.0,3.08446135]
[1743293862903,2.52614,1827.1,1827.0,3.82606135]
[1743293867205,3.2078,1827.5,1827.0,3.82606135]
[1743293867406,1.09497,1827.3,1827.1,6.24586049]
[1743293867707,1.09497,1827.3,1827.2,1.3594]
[1743293867898,1.09497,1827.3,1827.2,4.43832049]
[1743293870402,5.05467,1827.3,1827.2,4.43832049]
[1743293870799,5.05467,1827.3,1827.2,3.07892049]
[1743293870999,8.58167,1827.3,1827.2,3.07892049]
[1743293873511,5.37387,1827.3,1827.2,3.07892049]
[1743293876713,8.58167,1827.3,1827.2,3.07892049]
[1743293882919,5.05467,1827.3,1827.2,3.07892049]
[1743293883215,4.61297,1827.3,1827.2,3.76902049]
[1743293883410,7.82077,1827.3,1827.2,3.07892049]
[1743293883818,9.20517,1827.3,1827.2,3.07892049]
[1743293884518,1.09504,1827.1,1827.0,1.48734086]
[1743293884911,1.09504,1827.1,1827.0,4.56626135]
[1743293885110,2.47944,1827.1,1827.0,4.56626135]
[1743293887310,1.09504,1827.1,1827.0,4.56626135]
[1743293887715,1.09504,1827.1,1827.0,5.66135135]
[1743293888318,1.09504,1827.1,1827.0,4.56626135]
[1743293890721,1.09504,1827.1,1827.0,5.66136135]
[1743293890916,1.09504,1827.1,1827.0,4.56626135]
[1743293891624,1.09504,1827.1,1827.0,5.66136135]
[1743293892220,2.1771,1827.4,1827.1,1.09502]
[1743293892416,1.09492,1827.3,1827.2,1.3588]
[1743293892816,1.09492,1827.3,1827.2,4.43772049]
[1743293893019,2.53172,1827.3,1827.2,4.43772049]
[1743293893720,2.53172,1827.3,1827.2,3.07892049]
[1743293894022,9.25952,1827.3,1827.2,3.07892049]
[1743293894619,1.09504,1827.1,1827.0,0.00554086]
[1743293894818,4.30284,1827.1,1827.0,3.08446135]
[1743293895325,5.75684,1827.1,1827.0,3.08446135]
[1743293902025,1.09528,1826.7,1826.6,3.2078]
[1743293902229,1.09522,1826.8,1826.7,3.07892049]
[1743293902428,1.09534,1826.6,1826.5,1.3922]
[1743293902728,1.09532,1826.7,1826.6,3.07892049]
[1743293903033,3.517,1826.9,1826.6,3.07892049]